Cogmind - Beta 12 *** ADVENTURER MODE // 2023.03.12 @ 22:29:57 Player: Occam Result: Destroyed by D-53 Grenadier with Mini Grenade Launcher Performance ------------- Evolutions (0) 0 Regions Visited (4) 800 Robots Destroyed (24) 120 Value Destroyed (503) 503 Prototype IDs (23) 460 Alien Tech Used (0) 0 Bonus (284) 284 TOTAL SCORE: 2167 Bonus ------- Aligned with FarCom 300 Friendly Fire -16 Cogmind --------- Core Integrity 0/250 Matter 241/300 Energy 250/250 System Corruption 0% Temperature Warm (132) Movement Core (800) Ox15 Location -9/Mines Parts ------- > --- POWER (1) -------- Ion Engine > --- PROPULSION (2) --- Light Treads > --- UTILITY (2) ------ High-capacity Storage Unit Targeting Computer > --- WEAPON (2) ------- Light Cannon > --- INVENTORY (20) --- Ion Engine Light Treads Wheel Improved Heat Sink Large Storage Unit High-capacity Storage Unit High-capacity Matter Pod (0) Targeting Computer Hardened Light Armor Plating Hardened Light Armor Plating Hardened Light Armor Plating Latent Energy Streamer Heavy Battle Rifle Light Cannon Light Cannon Light Cannon Rocket Launcher Rocket Launcher Rocket Launcher Peak State ------------ > --- POWER ------------ Ion Engine > --- PROPULSION ------- Light Treads Wheel > --- UTILITY ---------- High-capacity Storage Unit Targeting Computer > --- WEAPON ----------- Beam Cannon Heavy Battle Rifle > --- INVENTORY -------- Ion Engine Light Treads Light Treads Wheel Improved Heat Sink Large Storage Unit High-capacity Storage Unit Medium Matter Pod Targeting Computer Hardened Light Armor Plating Hardened Light Armor Plating Hardened Light Armor Plating Latent Energy Streamer Light Cannon Light Cannon Light Cannon Light Cannon Rocket Launcher Rocket Launcher Rocket Launcher [Rating: 13] Favorites ----------- Power Ion Engine Engine Ion Engine Propulsion Wheel Treads Light Treads Wheel Wheel Utility High-capacity Storage Unit Device Improved Terrain Scanner Storage High-capacity Storage Unit Processor Targeting Computer Weapon Light Cannon Energy Gun Small Laser Energy Cannon Beam Cannon Ballistic Gun Heavy Battle Rifle Ballistic Cannon Light Cannon Launcher Rocket Launcher Build | -11 -10 -10 -10 -9 ------- Run | Jun Mat Min Exi Min Slots Evolved . | . . . . . Power . | . . . . . Propulsion . | . . . . . Utility . | . . . . . Weapon . | . . . . . Parts Attached 34 | 8 15 3 . 8 Power 3 | 1 1 1 . . Engine 3 | 1 1 1 . . Core . | . . . . . Reactor . | . . . . . Propulsion 11 | 3 6 1 . 1 Treads 5 | 1 3 . . 1 Leg . | . . . . . Wheel 6 | 2 3 1 . . Hover . | . . . . . Flight . | . . . . . Utility 5 | 2 3 . . . Device 2 | 1 1 . . . Storage 2 | 1 1 . . . Processor 1 | . 1 . . . Hackware . | . . . . . Protection . | . . . . . Artifact . | . . . . . Weapon 15 | 2 5 1 . 7 Energy Gun 3 | 2 1 . . . Energy Cannon 4 | . 2 . . 2 Ballistic Gun 1 | . . 1 . . Ballistic Cannon 3 | . 2 . . 1 Launcher 4 | . . . . 4 Special Weapon . | . . . . . Impact Weapon . | . . . . . Slashing Weapon . | . . . . . Piercing Weapon . | . . . . . Special Melee Weapon . | . . . . . Unidentified Prototypes . | . . . . . Parts Lost 3 | . . . . 3 Power . | . . . . . Propulsion 2 | . . . . 2 Utility . | . . . . . Weapon 1 | . . . . 1 Highest Loss Streak 2 | . . . . 2 To Critical Strikes . | . . . . . Average Slot Usage (%) 99 | . 99 100 100 100 Engine 14 | . 14 14 14 14 Treads 13 | . 13 14 14 14 Wheel 14 | . 14 14 14 14 Device 4 | . 6 . . . Storage 14 | . 14 14 14 14 Processor 9 | . 7 14 14 14 Energy Gun 7 | . 12 . . . Energy Cannon 5 | . 2 14 14 2 Ballistic Gun 2 | . . 3 14 . Ballistic Cannon 9 | . 12 10 . 3 Launcher 2 | . . . . 21 Naked Turns . | . . . . . Heaviest Build 53 | 13 52 52 52 53 Greatest Support 20 | 20 20 10 10 10 Greatest Overweight (x) 5 | 1 5 5 5 5 Average Overweight (x) 3 | . 3 5 5 5 Largest Inventory Capacity 20 | 8 20 20 20 20 Average Capacity 16 | 7 14 20 20 20 Most Carried 20 | 5 20 20 20 20 Average Carried 15 | 2 13 20 19 19 Final Capacity 20 | 8 20 20 20 20 Final Carried 20 | 5 20 20 20 19 Class Distribution -------------------- 100% | Mutant Dominant Class ---------------- Mutant | -10/Materials Mutant | -10/Mines Mutant | -10/Exiles Mutant | -9/Mines Resources | -11 -10 -10 -10 -9 ----------- Run | Jun Mat Min Exi Min Matter Collected 868 | 228 266 136 20 218 Remotely . | . . . . . Salvage Created 722 | 51 516 73 . 82 Parts 39 | 7 25 2 . 5 Haulers Intercepted 2 | . 2 . . . Recyclers Shooed 1 | . 1 . . . Parts Field Recycled . | . . . . . Retrieved Matter . | . . . . . Parts Self-Destructed . | . . . . . Prevented . | . . . . . Kills | -11 -10 -10 -10 -9 ------- Run | Jun Mat Min Exi Min Combat Hostiles Destroyed 35 | . 9 2 . 24 Guns 8 | . 8 . . . Cannons 7 | . 1 2 . 4 AOE 20 | . . . . 20 Classes Destroyed 8 | 1 5 . . 2 Tunneler 3 | 2 1 . . . Hauler 2 | . 2 . . . Recycler 1 | . 1 . . . Watcher 3 | . 3 . . . Swarmer 6 | . 3 . . 3 Grunt 8 | . 6 2 . . Demolisher 1 | . . . . 1 Assembled 20 | . . . . 20 Best Kill Streak 20 | 2 3 2 . 20 Combat Bots Only 20 | . 3 2 . 20 Max Kills in Single Turn 5 | 1 1 1 . 5 Gunslinging . | . . . . . Exploded 5 | . . . . 5 Melee . | . . . . . Uniques/NPCs Destroyed . | . . . . . Combat | -11 -10 -10 -10 -9 -------- Run | Jun Mat Min Exi Min Damage Taken 874 | . 295 49 . 530 Core 263 | . 113 16 . 134 Absorbed by Shields . | . . . . . Core Remaining (%) 100 | 100 . . . . Volleys Fired 70 | 2 44 4 . 20 Largest 2 | 2 2 2 . 2 Hottest 95 | 80 95 95 . 95 Shots Fired 134 | 4 88 8 . 34 Gun 74 | 4 70 . . . Cannon 44 | . 18 8 . 18 Launcher 16 | . . . . 16 Special . | . . . . . Kinetic 29 | . 16 4 . 9 Thermal 89 | 4 72 4 . 9 Explosive 16 | . . . . 16 Electromagnetic . | . . . . . Robot Hit Streak 15 | 2 15 9 . 12 Robot Miss Streak 3 | . 3 . . 1 Penetration Max . | . . . . . Secondary Targets 1 | . 1 . . . Max Gunslinging Chain 1 | . 1 . . . Shots Hit Robots 95 | 2 67 7 . 19 Core Hits 77 | 2 26 3 . 46 Critical Kills . | . . . . . Critical Parts Destroyed . | . . . . . Critical Strikes 2 | . 2 . . . Burn 1 | . 1 . . . Blast 1 | . 1 . . . Melee Attacks . | . . . . . Impact . | . . . . . Slashing . | . . . . . Piercing . | . . . . . Sneak Attacks . | . . . . . Combat Hostiles . | . . . . . Follow-up Attacks . | . . . . . Damage Inflicted 2917 | 23 865 123 . 1906 Guns 672 | 23 649 . . . Cannons 590 | . 202 123 . 265 Explosions 1641 | . . . . 1641 Melee . | . . . . . Ramming 14 | . 14 . . . Kinetic 380 | . 185 52 . 143 Thermal 882 | 23 666 71 . 122 Explosive 1641 | . . . . 1641 Electromagnetic . | . . . . . Impact . | . . . . . Slashing . | . . . . . Piercing . | . . . . . Highest Corruption . | . . . . . Average Corruption . | . . . . . Corruption Purged . | . . . . . Corruption Blocked . | . . . . . Overload Shots . | . . . . . Overflow Damage 130 | . . . . 130 Projectiles 12 | . . . . 12 Explosions 118 | . . . . 118 Melee . | . . . . . Knockbacks 2 | . 1 1 . . Impact . | . . . . . Kinetic 2 | . 1 1 . . Secondary . | . . . . . Self-Inflicted Damage 36 | . 3 . . 33 Shots 2 | . . . . 2 Rammed 4 | . 4 . . . Targets Rammed 4 | . 4 . . . Kicked . | . . . . . Crushed . | . . . . . Highest Temperature 168 | 18 166 168 . 145 Average Temperature 55 | 12 53 90 . 53 Received Heat Transfer 198 | . 162 36 . . Siege Activations . | . . . . . Robots Corrupted . | . . . . . Combat Hostiles . | . . . . . Parts Fried . | . . . . . Impact Corruptions . | . . . . . Robots Melted . | . . . . . Combat Hostiles . | . . . . . Parts Melted 1 | . . 1 . . Heat Transferred 2088 | 50 1631 148 . 259 Parts Sabotaged . | . . . . . Parts Stolen . | . . . . . Parts Stripped . | . . . . . Power Chain Reactions . | . . . . . Missiles Intercepted . | . . . . . Alert | -11 -10 -10 -10 -9 ------- Run | Jun Mat Min Exi Min Peak Influence 184 | 10 131 63 . 184 Initial 13 | . 5 13 . . Average 57 | 2 47 61 . 126 Maximum Alert Level . | . . . . . Low Security (%) 100 | 100 100 100 . 100 Level 1 . | . . . . . Level 2 . | . . . . . Level 3 . | . . . . . Level 4 . | . . . . . Level 5 . | . . . . . High Security . | . . . . . Max Security . | . . . . . Squads Dispatched 2 | . 2 . . . Investigation 2 | . 2 . . . Extermination . | . . . . . Reinforcement . | . . . . . Assault . | . . . . . Garrison . | . . . . . Intercept . | . . . . . Searches Triggered . | . . . . . Construction Impeded . | . . . . . Haulers Reinforced . | . . . . . Active Scanning Responses . | . . . . . Cargo Convoy Interrupts . | . . . . . Stealth | -11 -10 -10 -10 -9 --------- Run | Jun Mat Min Exi Min Distress Signals . | . . . . . Communications Jammed . | . . . . . Distress Signals . | . . . . . Times Spotted 38 | . 13 3 . 22 Peak Tracking Total 16 | . 3 3 . 16 Tactical Retreats 1 | . . . . 1 Traps | -11 -10 -10 -10 -9 ------- Run | Jun Mat Min Exi Min Traps Triggered 5 | . 5 . . . Indirectly . | . . . . . Trap Hack Attempts . | . . . . . Triggered . | . . . . . Disarmed . | . . . . . Reprogrammed . | . . . . . Reused . | . . . . . Traps Extracted . | . . . . . Installed . | . . . . . Triggered . | . . . . . Exploded 1 | . . . 1 . Machines | -11 -10 -10 -10 -9 ---------- Run | Jun Mat Min Exi Min Machines Disabled . | . . . . . Max in Single Turn . | . . . . . Machines Repaired . | . . . . . Machines Sabotaged . | . . . . . Overloaded Fab Kills . | . . . . . Hacking | -11 -10 -10 -10 -9 --------- Run | Jun Mat Min Exi Min Machines Accessed 7 | . 6 . 1 . Terminals 6 | . 6 . . . Fabricators . | . . . . . Repair Stations . | . . . . . Recycling Units . | . . . . . Scanalyzers . | . . . . . Garrison Access . | . . . . . Total Hacks 17 | . 16 . 1 . Successful 9 | . 8 . 1 . Failed 7 | . 7 . . . Catastrophic 1 | . 1 . . . Database Lockouts 1 | . 1 . . . Manual 17 | . 16 . 1 . Terminals 16 | . 16 . . . Fabricators . | . . . . . Repair Stations . | . . . . . Recycling Units . | . . . . . Scanalyzers . | . . . . . Garrison Access . | . . . . . Terminal Hacks 6 | . 5 . 1 . Robot Analysis 2 | . 2 . . . Branch Access Points 1 | . 1 . . . Terminal Index 1 | . 1 . . . Alert Level 1 | . 1 . . . EX-Prototype ID Bank 1 | . . . 1 . Fabricator Hacks . | . . . . . Repair Station Hacks . | . . . . . Recycling Unit Hacks . | . . . . . Scanalyzer . | . . . . . Garrison Access Hacks . | . . . . . Unauthorized Hacks 3 | . 3 . . . Terminals 3 | . 3 . . . Botnet 3 | . 3 . . . Fabricators . | . . . . . Repair Stations . | . . . . . Recycling Units . | . . . . . Scanalyzers . | . . . . . Garrison Access . | . . . . . Data Cores Recovered . | . . . . . Used . | . . . . . Hacking Detections 5 | . 5 . . . Full Trace Events 1 | . 1 . . . Feedback Events . | . . . . . Feedback Blocked . | . . . . . Robot Schematics Acquired . | . . . . . Robots Built . | . . . . . Authchips . | . . . . . Time . | . . . . . Total Robot Build Rating . | . . . . . Part Schematics Acquired . | . . . . . Parts Built . | . . . . . Authchips . | . . . . . Time . | . . . . . Total Part Build Rating . | . . . . . Parts Repaired . | . . . . . Time . | . . . . . Parts Recycled . | . . . . . Recycled Matter . | . . . . . Retrieved Matter . | . . . . . Retrieved Components . | . . . . . Parts Scanalyzed . | . . . . . Part Schematics Acquired . | . . . . . Parts Damaged . | . . . . . Bothacking | -11 -10 -10 -10 -9 ------------ Run | Jun Mat Min Exi Min Used RIF Installer . | . . . . . Robots Hacked . | . . . . . Non-combat . | . . . . . Combat . | . . . . . Robot Hacks Applied . | . . . . . Relay Couplers Released . | . . . . . Fabnet Peak Effective % . | . . . . . Robots Rewired . | . . . . . Allies Hacked . | . . . . . Hacks Repelled . | . . . . . Allies | -11 -10 -10 -10 -9 -------- Run | Jun Mat Min Exi Min Total Allies 1 | . . 1 . . Largest Group 1 | . . 1 1 . Highest-Rated Group 31 | . . 31 31 . Highest-Rated Ally 31 | . . 31 31 . Total Orders . | . . . . . Ally Attacks . | . . . . . Total Damage . | . . . . . Kills . | . . . . . Allies Corrupted . | . . . . . Allies Melted . | . . . . . Intel | -11 -10 -10 -10 -9 ------- Run | Jun Mat Min Exi Min Robot Analysis Total 2 | . 2 . . . Derelict Logs Recovered . | . . . . . Drone Launches . | . . . . . Drone Recoveries . | . . . . . Exploration | -11 -10 -10 -10 -9 ------------- Run | Jun Mat Min Exi Min Turns Passed 2478 | 74 1493 258 402 251 Spaces Moved 1511 | 56 923 156 258 118 Core 4 | 4 . . . . Treads 13 | 1 12 . . . Legs . | . . . . . Wheels 1494 | 51 911 156 258 118 Hover . | . . . . . Flight . | . . . . . Fastest Speed 50 | 50 95 155 155 155 Average Speed 135 | 93 126 155 155 155 Slowest Speed 160 | 160 160 155 155 155 Overloaded Moves . | . . . . . Propulsion Burnouts . | . . . . . Robots Hopped . | . . . . . Cave-ins Triggered . | . . . . . Exploration Rate (%) 45 | 3 85 39 63 38 Regions Visited 4 Branch Regions 3 Pre-discovered Areas 1 | . . 1 . . Known Exits Taken 1 | . 1 . . . Unknown Exits Taken 3 | 1 . 1 1 . Scrap Searched 1 | . . 1 . . Spaces Dug . | . . . . . Terrain Destroyed 125 | . . . . 125 Melee . | . . . . . Projectile . | . . . . . AOE 125 | . . . . 125 Terrain Rammed . | . . . . . Walls Destroyed . | . . . . . Machines Disabled . | . . . . . Actions | -11 -10 -10 -10 -9 --------- Run | Jun Mat Min Exi Min Total 1802 | 69 1156 166 261 150 Wait 143 | . 142 . . 1 Move 1507 | 55 922 155 257 118 Hop . | . . . . . Pick Up 24 | 4 17 . 2 1 Fast Attach 19 | 7 11 1 . . Attach 2 | . 1 . . 1 Detach 5 | . 4 1 . . Swap 13 | 1 3 2 . 7 Drop 15 | . 8 3 2 2 Fire 70 | 2 44 4 . 20 Melee . | . . . . . Ram 1 | . 1 . . . Kick . | . . . . . Crush 3 | . 3 . . . Escape Stasis . | . . . . . Rewire . | . . . . . Trap . | . . . . . Miscellaneous . | . . . . . Route ------- -11/Junkyard -10/Materials (discovered 4 exits: [*Mat x3] / *Min) -10/Mines (discovered 3 exits: [*Mat x2] / *Exi) -10/Exiles -9/Mines History --------- Turn | Location | Event 14 | -11/Junkyard | Discovered new exit (range 15) 75 | -11/Junkyard | Entered Materials 305 | -10/Materials | Build established: Mutant 372 | -10/Materials | Discovered new exit (range 16) 381 | -10/Materials | Identified exit to Mines 998 | -10/Materials | Discovered new exit (range 15) 999 | -10/Materials | Central database locked down 1309 | -10/Materials | Discovered new exit (range 16) 1568 | -10/Materials | Entered Mines 1575 | -10/Mines | Core integrity fell below 50% 1578 | -10/Mines | Escorted by a lone wolf Derelict 1598 | -10/Mines | Learned location of Storage (-8) 1748 | -10/Mines | A weapon hastily lodged in a ceiling crevice suddenly fell to the ground 1778 | -10/Mines | Discovered new exit (range 5) 1803 | -10/Mines | Discovered new exit (range 5) 1817 | -10/Mines | Deemed a non-threat by the Exiles lab entrance 1818 | -10/Mines | Discovered new exit (range 5) 1826 | -10/Mines | Entered Exiles 1826 | -10/Exiles | Accompanied by 1 ally 1865 | -10/Exiles | Met 8R-AWN 1888 | -10/Exiles | Met EX-HEX 1949 | -10/Exiles | Met EX-BIN 1968 | -10/Exiles | Aligned with FarCom system 1969 | -10/Exiles | Given EX-Vault access code 2008 | -10/Exiles | Opened EX-Vault 2022 | -10/Exiles | Found Latent Energy Streamer 2054 | -10/Exiles | Warned to stay clear of 0b10 Research branches 2072 | -10/Exiles | Exiles lab attacked by MAIN.C 2211 | -10/Exiles | Discovered new exit (range 14) 2228 | -10/Exiles | Left Exiles lab with Latent Energy Streamer 2228 | -10/Exiles | Entered Mines 2288 | -9/Mines | Received a Rocket Launcher from a helpful Derelict 2390 | -9/Mines | Assembled infested the area 2446 | -9/Mines | Destroyed 20 combat bots 2470 | -9/Mines | Core integrity fell below 20% 2479 | -9/Mines | Destroyed by D-53 Grenadier with Mini Grenade Launcher Last Messages --------------- 02453_ K-01 Serf collects debris. 02453_ Acquired 3 matter. 02454_ The unstable cave ceiling collapses. 02457_ K-01 Serf collects debris. 02458_ Acquired 3 matter. 02461_ K-01 Serf collects debris. 02461_ U-05 Engineer lays Concrete. 02464_ K-01 Serf collects debris. 02464_ D-53 Grenadier unfolds itself. 02465_ U-05 Engineer lays Concrete. 02467_ K-01 Serf collects debris. 02469_ The unstable cave ceiling collapses. 02469_ U-05 Engineer builds a Wall. 02469_ R-06 Scavenger destroyed. 02471_ K-01 Serf collects debris. 02473_ The unstable cave ceiling collapses. 02473_ D-53 Grenadier destroyed. 02474_ K-01 Serf collects debris. 02477_ Wheel destroyed. 02479_ Beam Cannon destroyed. Map ----- +----------------------------------------------------+ | ?????????????????????????????????????? | | ?????????????????????????????????????? | | ?????????????????????????????????????? | | ?????????????????????????????????????? | | ?????????????????????????????????????? | | ?????????????????????????????????????? | | ?????????????????????????????????????? | | ?????????????????????????????????????? | | ?????????????????????????????????????? | | ?????????????????????????????????????? | | ?????????????????????????????????????? | | ?????????????????????????????????????? | | ?????????????? ##????????????????????? | | ????????????? ####?????????????????? | | ???????????? ??????????????????# | | ????????????? ??????????????????# | | ????????????? ??????????????????## | | ????????????? ??????????????##### | | ????????????? ?????# ??????### | | ?????????????# ?????# ###### | | ??????????#### #?????# | | ?????????## ##????# | | ????????## ##???####### | | ????????# #?######## #### | | ????????# ] ### # ##??# | | ????????# @ ## ##??# | | ????????# ##?# | | ????????# #### # #?# | | ????????## < % ## | | ?????????## kd%% ## | | ??????????#### # # # ######## # | | ?????????????# # # % #?????##### | | ?????????????### # # ###?????????? | | ?????????????? # ###???????????? | | ?????????????## # # ????????????? | | ??????????????### ###? ????????????? | | ????????????????#####????????????????? | | ?????????????????????????????????????? | | ?????????????????????????????????????? | | ?????????????????????????????????????? | | ?????????????????????????????????????? | | ?????????????????????????????????????? | | ?????????????????????????????????????? | | ?????????????????????????????????????? | | ?????????????????????????????????????? | | ?????????????????????????????????????? | | ?????????????????????????????????????? | | ?????????????????????????????????????? | | ?????????????????????????????????????? | | ?????????????????????????????????????? | +----------------------------------------------------+ Best States ------------- Heat Dissipation 35 Energy Generation 10 Energy Capacity 250 Matter Stores 300 Matter Capacity 300 Sight Range 16 Terrain Scan Range 16 Terrain Scan Density 10 Resistance: KI 20 Resistance: TH 20 Resistance: EX 20 Resistance: EM 20 Resistance: I 20 Resistance: S 20 Resistance: P 20 Evasion (%) 41 Targeting Accuracy 5 Recoil Reduction 1 Offensive Hacking 10 Item Schematics ----------------- None Robot Schematics ------------------ None Fabricated ------------ Nothing Alien Tech Used ----------------- None Achievements -------------- None Challenges ------------ None Game ------ Seed MinesnifferSurgeStripper Manual? 0 Play Time 00:20:09 Cumulative 101.8 hours Start 2023.03.12 @ 20:19:10 End 2023.03.12 @ 22:29:57 Sessions 3 Manual Loads 0 Difficulty Adventurer Special Mode None Game No. 86 Rogue 0 Adventurer 86 Explorer 0 Win Type - Total 1 Types 1/0/0/0/0/0/0/0/0 Lore% 50 Gallery% 52 Achievement% 45 Wizard Run 0 Options --------- ASCII 0 Keyboard 0 Movement Mouse Keybinds 0 Fullscreen 2 Font 20/SmallcapsGlow Map View 66x50 Tactical HUD 1 Map Filters NONE Filters NONE Steam X RUN: 2ee53f2a-5c90-4d8d-9cfb-bab84effa5bc